[Event "DVM U10 2024"]
[Site "Duesseldorf"]
[Date "2024.12.28"]
[Round "5"]
[White "Hübner, Jakob"]
[Black "Hu, Yinuo"]
[Result "1-0"]
[ECO "D02"]
[WhiteElo "1045"]
[BlackElo "1495"]
[Annotator "NA RC"]
[PlyCount "101"]
[EventDate "2024.12.23"]
[EventType "team-tourn"]
[EventRounds "7"]
[EventCountry "GER"]
[SourceTitle "playchess.com"]
[Source "ChessBase"]
[SourceQuality "1"]
[TimeControl "3300+5"]

1. d4 {[%emt 0:00:03]} d5 {[%emt 0:00:08]} 2. Nf3 {[%emt 0:00:04]} c5 {[%emt 0:00:06]} 3. c3 {[%emt 0:00:29]} Nc6 {[%emt 0:00:10]} 4. dxc5 {[%emt 0:00:08]} e5 {[%emt 0:00:08]} 5. b4 {[%emt 0:00:33]} a6 {[%emt 0:00:40]} 6. g3 {[%emt 0:00:18]} Nf6 {[%emt 0:00:21]} 7. Bg2 {[%emt 0:00:13]} Be7 {[%emt 0:00:24]} 8. Ba3 {[%emt 0:00:25]} O-O {[%emt 0:00:40]} 9. O-O {[%emt 0:00:08]} Bf5 {[%emt 0:00:24]} 10. Nbd2 {[%emt 0:00:24]} Qd7 {[%emt 0:03:33]} 11. c4 {[%emt 0:00:26]} Bh3 {[%emt 0:01:21]} 12. cxd5 {[%emt 0:00:37]} Nxd5 {[%emt 0:00:17]} 13. Nc4 {[%emt 0:00:26]} Bxg2 {[%emt 0:01:54]} 14. Kxg2 {[%emt 0:00:13]} Nf6 {[%emt 0:00:59]} 15. Ncxe5 {[%emt 0:00:37]} Qxd1 {[%emt 0:00:56]} 16. Rfxd1 {[%emt 0:00:26]} Nxe5 {[%emt 0:00:18]} 17. Nxe5 {[%emt 0:00:19]} a5 {[%emt 0:01:03]} 18. Nd7 {[%emt 0:00:23]} Nxd7 {[%emt 0:00:18]} 19. Rxd7 {[%emt 0:00:16]} Bf6 {[%emt 0:00:07]} 20. Rb1 {[%emt 0:00:17]} Rfb8 {[%emt 0:00:54]} 21. bxa5 {[%emt 0:01:06]} Rxa5 {[%emt 0:00:16]} 22. Bb2 {[%emt 0:00:54]} Rxc5 {[%emt 0:00:29]} 23. Ba3 {[%emt 0:00:36]} Ra5 {[%emt 0:00:27]} 24. Rdxb7 {[%emt 0:00:32]} Rxb7 {[%emt 0:00:41]} 25. Rxb7 {[%emt 0:00:27]} h6 {[%emt 0:00:28]} 26. Bb2 {[%emt 0:00:20]} Rxa2 {[%emt 0:00:19]} 27. Bxf6 {[%emt 0:00:22]} gxf6 {[%emt 0:00:09]} 28. e3 {[%emt 0:00:48]} Kg7 {[%emt 0:00:11]} 29. h4 {[%emt 0:00:48]} Kg6 {[%emt 0:00:30]} 30. e4 {[%emt 0:00:48]} Ra4 {[%emt 0:00:29]} 31. f3 {[%emt 0:00:39]} h5 {[%emt 0:00:35]} 32. Rb6 {[%emt 0:00:47]} Ra5 {[%emt 0:00:33]} 33. f4 {[%emt 0:00:31]} Ra3 {[%emt 0:00:26]} 34. e5 {[%emt 0:00:26]} Kg7 {[%emt 0:01:25]} 35. Rxf6 {[%emt 0:00:24]} Ra7 {[%emt 0:00:45]} 36. Rf5 {[%emt 0:00:50]} Kg6 {[%emt 0:00:17]} 37. Rg5+ {[%emt 0:00:21]} Kh6 {[%emt 0:00:57]} 38. Kf3 {[%emt 0:00:23]} Ra6 {[%emt 0:00:16]} 39. Ke4 {[%emt 0:01:44]} Rg6 {[%emt 0:00:24]} 40. Rxg6+ {[%emt 0:02:09]} Kxg6 {[%emt 0:00:13]} 41. f5+ {[%emt 0:00:34]} Kg7 {[%emt 0:00:19]} 42. e6 {[%emt 0:00:38]} fxe6 {[%emt 0:00:58]} 43. fxe6 {[%emt 0:00:10]} Kf6 {[%emt 0:00:05]} 44. Kd5 {[%emt 0:00:08]} Ke7 {[%emt 0:00:10]} 45. Ke5 {[%emt 0:01:46]} Ke8 {[%emt 0:00:09]} 46. Kf4 {[%emt 0:00:52]} Ke7 {[%emt 0:00:08]} 47. Kf5 {[%emt 0:00:32]} Ke8 {[%emt 0:00:40]} 48. Kg5 {[%emt 0:01:03]} Ke7 {[%emt 0:00:38]} 49. Kxh5 {[%emt 0:00:09]} Kxe6 {[%emt 0:00:04]} 50. Kg6 {[%emt 0:00:12]} Ke7 {[%emt 0:00:27]} 51. Kg7 {[%emt 0:00:19]} 1-0

[Event "DVM U10 2024"]
[Site "Duesseldorf"]
[Date "2024.12.28"]
[Round "5"]
[White "von der Thüsen, Gottfried"]
[Black "Jiang, Lucas"]
[Result "0-1"]
[ECO "C34"]
[WhiteElo "1041"]
[BlackElo "2261"]
[Annotator "ChessBase"]
[PlyCount "112"]
[EventDate "2024.12.23"]
[EventType "team-tourn"]
[EventRounds "7"]
[EventCountry "GER"]
[SourceTitle "playchess.com"]
[Source "ChessBase"]
[SourceQuality "1"]
[TimeControl "3300+5"]

1. e4 {[%emt 0:00:07]} e5 {[%emt 0:00:08]} 2. f4 {[%emt 0:00:18]} exf4 {[%emt 0:00:25]} 3. Nf3 {[%emt 0:00:23]} Nc6 {[%emt 0:00:30]} 4. d4 {[%emt 0:00:17]} Be7 {[%emt 0:02:50]} 5. d5 {[%emt 0:00:05]} Bh4+ {[%emt 0:00:59]} 6. Kd2 {[%emt 0:01:06]} Na5 {[%emt 0:01:38]} 7. Bd3 {[%emt 0:01:06]} b6 {[%emt 0:00:34]} 8. Nc3 {[%emt 0:01:22]} Be7 {[%emt 0:00:34]} 9. Ke2 {[%emt 0:00:37]} d6 {[%emt 0:00:22]} 10. Bxf4 {[%emt 0:00:31]} Nb7 {[%emt 0:00:23]} 11. Qd2 {[%emt 0:01:20]} Nf6 {[%emt 0:00:26]} 12. Rae1 {[%emt 0:00:33]} Bg4 {[%emt 0:00:30]} 13. Rhf1 {[%emt 0:00:40]} O-O {[%emt 0:00:31]} 14. Kd1 {[%emt 0:01:48]} Rc8 {[%emt 0:02:06]} 15. e5 {[%emt 0:00:44]} dxe5 {[%emt 0:00:58]} 16. Bxe5 {[%emt 0:00:37]} Bd6 {[%emt 0:01:08]} 17. Bxd6 {[%emt 0:01:31]} Qxd6 {[%emt 0:01:06]} 18. h3 {[%emt 0:04:34]} Bh5 {[%emt 0:00:51]} 19. g4 {[%emt 0:00:25]} Bg6 {[%emt 0:00:23]} 20. Bxg6 {[%emt 0:01:50]} hxg6 {[%emt 0:00:23]} 21. g5 {[%emt 0:03:37]} Nh5 {[%emt 0:01:18]} 22. Nd4 {[%emt 0:06:17]} a6 {[%emt 0:01:33]} 23. Nc6 {[%emt 0:01:38]} Rfe8 {[%emt 0:01:04]} 24. Ne4 {[%emt 0:02:15]} Qd7 {[%emt 0:01:26]} 25. Re3 {[%emt 0:03:47]} Nd8 {[%emt 0:01:01]} 26. Rfe1 {[%emt 0:00:41]} Nxc6 {[%emt 0:01:23]} 27. dxc6 {[%emt 0:00:26]} Qxc6 {[%emt 0:00:40]} 28. Qc3 {[%emt 0:00:42]} Qxc3 {[%emt 0:01:24]} 29. Nxc3 {[%emt 0:00:15]} Rxe3 {[%emt 0:00:58]} 30. Rxe3 {[%emt 0:00:24]} f6 {[%emt 0:00:24]} 31. h4 {[%emt 0:00:57]} Nf4 {[%emt 0:00:30]} 32. Rf3 {[%emt 0:01:19]} Nh5 {[%emt 0:00:54]} 33. Nd5 {[%emt 0:00:34]} Rd8 {[%emt 0:00:27]} 34. Rd3 {[%emt 0:00:19]} Rd7 {[%emt 0:00:53]} 35. Nxf6+ {[%emt 0:00:21]} Nxf6 {[%emt 0:00:20]} 36. gxf6 {[%emt 0:00:15]} Rxd3+ {[%emt 0:00:09]} 37. cxd3 {[%emt 0:00:20]} gxf6 {[%emt 0:00:05]} 38. Ke2 {[%emt 0:01:10]} Kf7 {[%emt 0:00:10]} 39. Kf3 {[%emt 0:00:17]} g5 {[%emt 0:00:12]} 40. hxg5 {[%emt 0:00:13]} fxg5 {[%emt 0:00:10]} 41. Kg4 {[%emt 0:00:22]} Kg6 {[%emt 0:00:13]} 42. d4 {[%emt 0:00:30]} c6 {[%emt 0:00:14]} 43. b3 {[%emt 0:00:50]} Kf6 {[%emt 0:00:21]} 44. a3 {[%emt 0:00:17]} a5 {[%emt 0:00:18]} 45. a4 {[%emt 0:00:27]} c5 {[%emt 0:00:39]} 46. dxc5 {[%emt 0:00:27]} bxc5 {[%emt 0:00:07]} 47. Kf3 {[%emt 0:01:16]} Kf5 {[%emt 0:00:09]} 48. Kg3 {[%emt 0:00:19]} g4 {[%emt 0:00:15]} 49. Kf2 {[%emt 0:00:13]} Kf4 {[%emt 0:00:40]} 50. Kg2 {[%emt 0:00:37]} g3 {[%emt 0:00:07]} 51. Kh1 {[%emt 0:00:22]} Kf3 {[%emt 0:00:29]} 52. b4 {[%emt 0:00:50]} cxb4 {[%emt 0:00:16]} 53. Kg1 {[%emt 0:00:29]} g2 {[%emt 0:00:20]} 54. Kh2 {[%emt 0:00:31]} Kf2 {[%emt 0:00:19]} 55. Kh3 {[%emt 0:00:20]} g1=Q {[%emt 0:01:00]} 56. Kh4 {[%emt 0:00:32]} Qg6 {[%emt 0:00:12]} 0-1

[Event "DVM U10 2024"]
[Site "Duesseldorf"]
[Date "2024.12.28"]
[Round "5"]
[White "Mettenbrink, Tammo"]
[Black "Schacht, Jakob Otto"]
[Result "1/2-1/2"]
[ECO "B01"]
[WhiteElo "1029"]
[BlackElo "1064"]
[Annotator "NA RC"]
[PlyCount "75"]
[EventDate "2024.12.23"]
[EventType "team-tourn"]
[EventRounds "7"]
[EventCountry "GER"]
[SourceTitle "playchess.com"]
[Source "ChessBase"]
[SourceQuality "1"]
[TimeControl "3300+5"]

1. e4 {[%emt 0:00:02]} d5 {[%emt 0:00:05]} 2. exd5 {[%emt 0:00:07]} Nf6 {[%emt 0:00:11]} 3. Bc4 {[%emt 0:00:19]} Nxd5 {[%emt 0:00:11]} 4. Nf3 {[%emt 0:00:15]} Nc6 {[%emt 0:00:57]} 5. O-O {[%emt 0:00:42]} Nb6 {[%emt 0:00:15]} 6. Bb3 {[%emt 0:00:17]} e5 {[%emt 0:00:21]} 7. Nc3 {[%emt 0:00:14]} Bd6 {[%emt 0:00:21]} 8. Re1 {[%emt 0:00:31]} Bg4 {[%emt 0:00:17]} 9. Re4 {[%emt 0:00:40]} Bf5 {[%emt 0:00:51]} 10. Re3 {[%emt 0:00:26]} Qd7 {[%emt 0:01:22]} 11. d4 {[%emt 0:00:47]} O-O-O {[%emt 0:01:31]} 12. dxe5 {[%emt 0:00:55]} Bc5 {[%emt 0:00:30]} 13. Qxd7+ {[%emt 0:00:51]} Rxd7 {[%emt 0:00:17]} 14. Re1 {[%emt 0:00:31]} Bg4 {[%emt 0:03:02]} 15. Ng5 {[%emt 0:00:49]} Bh5 {[%emt 0:03:35]} 16. e6 {[%emt 0:00:29]} Re7 {[%emt 0:00:37]} 17. Bf4 {[%emt 0:00:44]} f6 {[%emt 0:00:43]} 18. Nge4 {[%emt 0:01:35]} Bb4 {[%emt 0:02:46]} 19. Re3 {[%emt 0:03:24]} Nd4 {[%emt 0:01:59]} 20. Ng3 {[%emt 0:01:02]} Bg6 {[%emt 0:01:07]} 21. Rc1 {[%emt 0:02:25]} Nxb3 {[%emt 0:00:18]} 22. cxb3 {[%emt 0:01:09]} Rhe8 {[%emt 0:00:55]} 23. h3 {[%emt 0:02:50]} Rxe6 {[%emt 0:00:21]} 24. Rxe6 {[%emt 0:00:35]} Rxe6 {[%emt 0:00:17]} 25. Bxc7 {[%emt 0:00:59]} Kd7 {[%emt 0:07:46]} 26. Bxb6 {[%emt 0:00:26]} Rxb6 {[%emt 0:00:14]} 27. Nd5 {[%emt 0:00:49]} Rb5 {[%emt 0:00:47]} 28. Rd1 {[%emt 0:00:46]} Kc6 {[%emt 0:00:39]} 29. Nxb4+ {[%emt 0:01:07]} Rxb4 {[%emt 0:00:20]} 30. Rc1+ {[%emt 0:02:43]} Kd7 {[%emt 0:00:23]} 31. Rc4 {[%emt 0:00:41]} Rxc4 {[%emt 0:00:21]} 32. bxc4 {[%emt 0:00:13]} Bd3 {[%emt 0:00:12]} 33. c5 {[%emt 0:00:52]} Bb1 {[%emt 0:00:23]} 34. a3 {[%emt 0:00:09]} Kc6 {[%emt 0:00:12]} 35. Kf1 {[%emt 0:00:34]} Kxc5 {[%emt 0:00:13]} 36. Ke1 {[%emt 0:00:17]} Kc4 {[%emt 0:00:13]} 37. Kd1 {[%emt 0:00:38]} Kb3 {[%emt 0:00:34]} 38. Kc1 {[%emt 0:00:24]} 1/2-1/2

[Event "DVM U10 2024"]
[Site "Duesseldorf"]
[Date "2024.12.28"]
[Round "5"]
[White "Horn, Philipp"]
[Black "Leppin, Mattis"]
[Result "1-0"]
[ECO "B12"]
[WhiteElo "988"]
[BlackElo "1138"]
[Annotator "NA RC"]
[PlyCount "103"]
[EventDate "2024.12.23"]
[EventType "team-tourn"]
[EventRounds "7"]
[EventCountry "GER"]
[SourceTitle "playchess.com"]
[Source "ChessBase"]
[SourceQuality "1"]
[TimeControl "3300+5"]

1. e4 {[%emt 0:00:02]} c6 {[%emt 0:00:04]} 2. d4 {[%emt 0:00:04]} d5 {[%emt 0:00:04]} 3. Bd3 {[%emt 0:00:39]} dxe4 {[%emt 0:00:13]} 4. Bxe4 {[%emt 0:00:09]} Nf6 {[%emt 0:00:03]} 5. Nc3 {[%emt 0:00:31]} Nxe4 {[%emt 0:00:38]} 6. Nxe4 {[%emt 0:00:09]} Bf5 {[%emt 0:00:07]} 7. Nc3 {[%emt 0:00:15]} e6 {[%emt 0:00:07]} 8. Bf4 {[%emt 0:00:23]} Nd7 {[%emt 0:00:18]} 9. Nf3 {[%emt 0:00:10]} Nf6 {[%emt 0:00:20]} 10. O-O {[%emt 0:01:47]} Bd6 {[%emt 0:00:09]} 11. Bxd6 {[%emt 0:01:21]} Qxd6 {[%emt 0:00:09]} 12. Re1 {[%emt 0:01:35]} O-O {[%emt 0:00:09]} 13. Qd2 {[%emt 0:01:19]} Bg4 {[%emt 0:00:41]} 14. Re3 {[%emt 0:01:40]} Bxf3 {[%emt 0:00:40]} 15. Rxf3 {[%emt 0:00:12]} c5 {[%emt 0:00:08]} 16. Ne2 {[%emt 0:00:36]} cxd4 {[%emt 0:00:36]} 17. Nxd4 {[%emt 0:00:33]} e5 {[%emt 0:01:13]} 18. Nb3 {[%emt 0:00:08]} Qc7 {[%emt 0:01:20]} 19. h3 {[%emt 0:01:30]} Rad8 {[%emt 0:00:17]} 20. Qe2 {[%emt 0:01:16]} Nd5 {[%emt 0:00:47]} 21. c3 {[%emt 0:00:49]} Nf4 {[%emt 0:00:18]} 22. Qe3 {[%emt 0:01:54]} Rd3 {[%emt 0:00:29]} 23. Qxa7 {[%emt 0:01:42]} Rxf3 {[%emt 0:01:35]} 24. gxf3 {[%emt 0:00:08]} Nxh3+ {[%emt 0:00:09]} 25. Kf1 {[%emt 0:01:03]} Ng5 {[%emt 0:00:10]} 26. Qe3 {[%emt 0:00:12]} Ne6 {[%emt 0:00:59]} 27. Nc1 {[%emt 0:01:05]} Nc5 {[%emt 0:00:59]} 28. Nd3 {[%emt 0:00:56]} Nxd3 {[%emt 0:00:39]} 29. Qxd3 {[%emt 0:00:07]} Rd8 {[%emt 0:01:31]} 30. Qc2 {[%emt 0:00:45]} Qc6 {[%emt 0:00:13]} 31. Rd1 {[%emt 0:00:48]} Qf6 {[%emt 0:01:46]} 32. Qe2 {[%emt 0:04:42]} Re8 {[%emt 0:03:14]} 33. Qe4 {[%emt 0:01:08]} Qe7 {[%emt 0:01:52]} 34. f4 {[%emt 0:01:33]} g6 {[%emt 0:00:42]} 35. Re1 {[%emt 0:01:07]} f6 {[%emt 0:01:22]} 36. fxe5 {[%emt 0:01:23]} Qxe5 {[%emt 0:00:59]} 37. Qc4+ {[%emt 0:00:06]} Kg7 {[%emt 0:02:57]} 38. Rxe5 {[%emt 0:00:18]} Rxe5 {[%emt 0:00:05]} 39. Qc7+ {[%emt 0:00:44]} Kh6 {[%emt 0:00:10]} 40. Qxb7 {[%emt 0:00:10]} Ra5 {[%emt 0:01:18]} 41. Qb3 {[%emt 0:00:56]} Kg5 {[%emt 0:00:19]} 42. a4 {[%emt 0:00:56]} h5 {[%emt 0:00:07]} 43. c4 {[%emt 0:02:14]} h4 {[%emt 0:00:06]} 44. Kg1 {[%emt 0:00:28]} Re5 {[%emt 0:00:38]} 45. Qc3 {[%emt 0:01:23]} Re4 {[%emt 0:00:32]} 46. c5 {[%emt 0:00:09]} Rxa4 {[%emt 0:00:22]} 47. c6 {[%emt 0:00:15]} Ra1+ {[%emt 0:01:00]} 48. Kg2 {[%emt 0:00:30]} Ra8 {[%emt 0:00:12]} 49. c7 {[%emt 0:00:20]} Rc8 {[%emt 0:00:06]} 50. b4 {[%emt 0:00:10]} Kf5 {[%emt 0:01:00]} 51. Qc6 {[%emt 0:00:31]} g5 {[%emt 0:00:31]} 52. Qd7+ {[%emt 0:00:12]} 1-0

[Event "DVM U10 2024"]
[Site "Duesseldorf"]
[Date "2024.12.28"]
[Round "5"]
[White "Obermeier, Vitus"]
[Black "Najjar, Anton"]
[Result "1-0"]
[ECO "B30"]
[WhiteElo "982"]
[BlackElo "933"]
[Annotator "NA RC"]
[PlyCount "55"]
[EventDate "2024.12.23"]
[EventType "team-tourn"]
[EventRounds "7"]
[EventCountry "GER"]
[SourceTitle "playchess.com"]
[Source "ChessBase"]
[SourceQuality "1"]
[TimeControl "3300+5"]

1. e4 {[%emt 0:00:01]} c5 {[%emt 0:00:06]} 2. Nf3 {[%emt 0:00:11]} Nc6 {[%emt 0:00:09]} 3. Bc4 {[%emt 0:00:07]} e6 {[%emt 0:00:10]} 4. Nc3 {[%emt 0:00:08]} d5 {[%emt 0:00:10]} 5. exd5 {[%emt 0:00:09]} exd5 {[%emt 0:00:11]} 6. Bxd5 {[%emt 0:00:06]} Nf6 {[%emt 0:00:24]} 7. Bb3 {[%emt 0:00:22]} Be7 {[%emt 0:00:25]} 8. d3 {[%emt 0:00:29]} O-O {[%emt 0:00:11]} 9. Bf4 {[%emt 0:00:29]} Re8 {[%emt 0:00:16]} 10. O-O {[%emt 0:00:21]} Bg4 {[%emt 0:00:26]} 11. Nb5 {[%emt 0:00:22]} Rc8 {[%emt 0:00:33]} 12. h3 {[%emt 0:00:26]} Bxf3 {[%emt 0:00:17]} 13. Qxf3 {[%emt 0:00:08]} a6 {[%emt 0:00:25]} 14. Nc3 {[%emt 0:00:08]} Nd4 {[%emt 0:00:16]} 15. Qg3 {[%emt 0:00:40]} b5 {[%emt 0:00:57]} 16. Bh6 {[%emt 0:00:17]} g6 {[%emt 0:00:17]} 17. Rae1 {[%emt 0:00:58]} a5 {[%emt 0:00:45]} 18. a3 {[%emt 0:00:40]} a4 {[%emt 0:00:42]} 19. Ba2 {[%emt 0:00:09]} Nxc2 {[%emt 0:00:15]} 20. Re5 {[%emt 0:01:20]} Bd6 {[%emt 0:01:10]} 21. Rxe8+ {[%emt 0:00:08]} Nxe8 {[%emt 0:00:54]} 22. Qf3 {[%emt 0:00:34]} Nf6 {[%emt 0:00:56]} 23. Bg5 {[%emt 0:00:37]} Be7 {[%emt 0:00:39]} 24. Ne4 {[%emt 0:00:44]} Nxe4 {[%emt 0:00:39]} 25. Qxf7+ {[%emt 0:00:42]} Kh8 {[%emt 0:00:52]} 26. Bxe7 {[%emt 0:00:32]} Qe8 {[%emt 0:00:24]} 27. Bf6+ {[%emt 0:00:42]} Nxf6 {[%emt 0:00:44]} 28. Qxf6# {[%emt 0:00:02]} 1-0

[Event "DVM U10 2024"]
[Site "Duesseldorf"]
[Date "2024.12.28"]
[Round "5"]
[White "Wüstenberg, Felix"]
[Black "Gerigk, Maximilian"]
[Result "0-1"]
[ECO "C42"]
[WhiteElo "975"]
[BlackElo "823"]
[Annotator "NA RC"]
[PlyCount "39"]
[EventDate "2024.12.23"]
[EventType "team-tourn"]
[EventRounds "7"]
[EventCountry "GER"]
[SourceTitle "playchess.com"]
[Source "ChessBase"]
[SourceQuality "1"]
[TimeControl "3300+5"]

1. e4 {[%emt 0:00:04]} e5 {[%emt 0:00:02]} 2. Nf3 {[%emt 0:00:11]} Nc6 {[%emt 0:00:09]} 3. Bc4 {[%emt 0:00:03]} Nf6 {[%emt 0:00:11]} 4. Nc3 {[%emt 0:00:06]} Bb4 {[%emt 0:00:12]} 5. O-O {[%emt 0:00:08]} O-O {[%emt 0:00:36]} 6. d3 {[%emt 0:00:00]} d6 {[%emt 0:00:40]} 7. Bg5 {[%emt 0:00:04]} Bg4 {[%emt 0:00:15]} 8. Nd5 {[%emt 0:00:05]} Be6 {[%emt 0:03:13]} 9. Nxf6+ {[%emt 0:00:34]} gxf6 {[%emt 0:00:04]} 10. Bh6 {[%emt 0:00:06]} Re8 {[%emt 0:00:52]} 11. a3 {[%emt 0:00:12]} Bc5 {[%emt 0:02:29]} 12. Re1 {[%emt 0:03:38]} Kh8 {[%emt 0:00:05]} 13. Nh4 {[%emt 0:00:05]} Rg8 {[%emt 0:01:47]} 14. g3 {[%emt 0:00:35]} Bg4 {[%emt 0:02:23]} 15. Qd2 {[%emt 0:00:37]} Nd4 {[%emt 0:03:24]} 16. Bxf7 {[%emt 0:00:31]} Nf3+ {[%emt 0:03:36]} 17. Nxf3 {[%emt 0:00:24]} Bxf3 {[%emt 0:00:05]} 18. Bxg8 {[%emt 0:00:05]} Qxg8 {[%emt 0:00:05]} 19. Be3 {[%emt 0:00:05]} Qg4 {[%emt 0:01:09]} 20. Bxc5 {[%emt 0:07:52]} 0-1

[Event "DVM U10 2024"]
[Site "Duesseldorf"]
[Date "2024.12.28"]
[Round "5"]
[White "Wang, Alice"]
[Black "Kresse, Andreas"]
[Result "1-0"]
[ECO "C50"]
[WhiteElo "958"]
[BlackElo "744"]
[Annotator "NA RC"]
[PlyCount "75"]
[EventDate "2024.12.23"]
[EventType "team-tourn"]
[EventRounds "7"]
[EventCountry "GER"]
[SourceTitle "playchess.com"]
[Source "ChessBase"]
[SourceQuality "1"]
[TimeControl "3300+5"]

1. e4 {[%emt 0:00:02]} e5 {[%emt 0:00:00]} 2. Nf3 {[%emt 0:00:04]} Nc6 {[%emt 0:00:14]} 3. Bc4 {[%emt 0:00:15]} Bc5 {[%emt 0:00:13]} 4. O-O {[%emt 0:00:06]} Nf6 {[%emt 0:00:06]} 5. d3 {[%emt 0:00:07]} d6 {[%emt 0:00:10]} 6. Nc3 {[%emt 0:00:08]} Bg4 {[%emt 0:00:15]} 7. h3 {[%emt 0:00:45]} Bh5 {[%emt 0:00:55]} 8. g4 {[%emt 0:00:00]} Bg6 {[%emt 0:01:04]} 9. Ng5 {[%emt 0:00:20]} O-O {[%emt 0:00:40]} 10. a3 {[%emt 0:00:48]} d5 {[%emt 0:01:10]} 11. exd5 {[%emt 0:00:00]} Na5 {[%emt 0:01:11]} 12. b4 {[%emt 0:00:00]} Bd6 {[%emt 0:00:34]} 13. bxa5 {[%emt 0:00:00]} Qe7 {[%emt 0:01:16]} 14. Nb5 {[%emt 0:00:42]} Bc5 {[%emt 0:01:32]} 15. c3 {[%emt 0:01:05]} c6 {[%emt 0:00:15]} 16. dxc6 {[%emt 0:00:53]} bxc6 {[%emt 0:00:06]} 17. d4 {[%emt 0:00:19]} exd4 {[%emt 0:01:26]} 18. cxd4 {[%emt 0:00:09]} cxb5 {[%emt 0:00:50]} 19. Bxb5 {[%emt 0:00:33]} Bd6 {[%emt 0:00:43]} 20. Re1 {[%emt 0:00:17]} a6 {[%emt 0:00:27]} 21. Rxe7 {[%emt 0:00:12]} Bxe7 {[%emt 0:00:14]} 22. Bc4 {[%emt 0:00:10]} Ra7 {[%emt 0:01:21]} 23. Nf3 {[%emt 0:00:59]} Be4 {[%emt 0:01:27]} 24. Nd2 {[%emt 0:00:28]} Bc6 {[%emt 0:00:32]} 25. g5 {[%emt 0:00:06]} Nd5 {[%emt 0:00:41]} 26. h4 {[%emt 0:00:48]} Bd6 {[%emt 0:00:32]} 27. Ne4 {[%emt 0:00:22]} Bb8 {[%emt 0:00:47]} 28. Nc5 {[%emt 0:00:46]} Re7 {[%emt 0:00:45]} 29. Nxa6 {[%emt 0:00:57]} Bd6 {[%emt 0:01:04]} 30. Qf3 {[%emt 0:00:34]} Re1+ {[%emt 0:02:51]} 31. Kg2 {[%emt 0:00:33]} Rfe8 {[%emt 0:02:13]} 32. Bxd5 {[%emt 0:00:38]} Bd7 {[%emt 0:02:50]} 33. Bc6 {[%emt 0:00:42]} Bc8 {[%emt 0:00:30]} 34. Bxe8 {[%emt 0:01:04]} Bxa6 {[%emt 0:01:06]} 35. Qxf7+ {[%emt 0:00:51]} Kh8 {[%emt 0:00:12]} 36. Rb1 {[%emt 0:00:30]} Bd3 {[%emt 0:01:10]} 37. Rb6 {[%emt 0:00:15]} Bc7 {[%emt 0:00:39]} 38. Qf8# {[%emt 0:00:14]} 1-0

[Event "DVM U10 2024"]
[Site "Duesseldorf"]
[Date "2024.12.28"]
[Round "5"]
[White "Holzhäuser, Thibaut Lautaro"]
[Black "Kolesnikoff, Christophe"]
[Result "0-1"]
[ECO "C59"]
[WhiteElo "955"]
[BlackElo "980"]
[Annotator "NA RC"]
[PlyCount "88"]
[EventDate "2024.12.23"]
[EventType "team-tourn"]
[EventRounds "7"]
[EventCountry "GER"]
[SourceTitle "playchess.com"]
[Source "ChessBase"]
[SourceQuality "1"]
[TimeControl "3300+5"]

1. e4 {[%emt 0:00:05]} e5 {[%emt 0:00:08]} 2. Nf3 {[%emt 0:00:07]} Nc6 {[%emt 0:00:05]} 3. Bc4 {[%emt 0:00:06]} Nf6 {[%emt 0:00:11]} 4. Ng5 {[%emt 0:00:08]} d5 {[%emt 0:00:20]} 5. exd5 {[%emt 0:00:07]} Na5 {[%emt 0:00:12]} 6. Bb5+ {[%emt 0:00:23]} c6 {[%emt 0:00:06]} 7. dxc6 {[%emt 0:00:08]} bxc6 {[%emt 0:00:04]} 8. Be2 {[%emt 0:00:48]} Bd6 {[%emt 0:00:23]} 9. Nc3 {[%emt 0:00:13]} h6 {[%emt 0:00:20]} 10. Nf3 {[%emt 0:00:05]} Bg4 {[%emt 0:00:16]} 11. d3 {[%emt 0:00:12]} O-O {[%emt 0:00:16]} 12. O-O {[%emt 0:00:04]} Re8 {[%emt 0:00:35]} 13. h3 {[%emt 0:00:05]} Bxf3 {[%emt 0:00:08]} 14. Bxf3 {[%emt 0:00:03]} Bb4 {[%emt 0:00:30]} 15. Bd2 {[%emt 0:00:23]} Rc8 {[%emt 0:00:43]} 16. a3 {[%emt 0:00:12]} Bxc3 {[%emt 0:00:33]} 17. Bxc3 {[%emt 0:00:06]} Nb7 {[%emt 0:00:17]} 18. Re1 {[%emt 0:00:13]} Qd6 {[%emt 0:00:35]} 19. Re2 {[%emt 0:01:00]} Re6 {[%emt 0:00:37]} 20. Qd2 {[%emt 0:03:08]} Rce8 {[%emt 0:00:35]} 21. Rae1 {[%emt 0:00:01]} Nd8 {[%emt 0:01:00]} 22. Re3 {[%emt 0:01:20]} Nd5 {[%emt 0:00:36]} 23. Bxd5 {[%emt 0:00:12]} cxd5 {[%emt 0:00:18]} 24. Bb4 {[%emt 0:00:16]} Qb6 {[%emt 0:00:35]} 25. Kh1 {[%emt 0:06:03]} Nc6 {[%emt 0:00:20]} 26. f3 {[%emt 0:00:58]} a5 {[%emt 0:00:27]} 27. Bxa5 {[%emt 0:00:57]} Nxa5 {[%emt 0:00:25]} 28. b4 {[%emt 0:00:21]} Nc6 {[%emt 0:04:58]} 29. c4 {[%emt 0:00:25]} dxc4 {[%emt 0:00:39]} 30. dxc4 {[%emt 0:00:05]} Nd4 {[%emt 0:00:56]} 31. a4 {[%emt 0:00:31]} Nf5 {[%emt 0:01:35]} 32. c5 {[%emt 0:00:57]} Qc6 {[%emt 0:00:34]} 33. Ra3 {[%emt 0:00:03]} e4 {[%emt 0:02:05]} 34. fxe4 {[%emt 0:00:14]} Rxe4 {[%emt 0:00:25]} 35. Rxe4 {[%emt 0:00:03]} Rxe4 {[%emt 0:01:02]} 36. a5 {[%emt 0:00:32]} Nd4 {[%emt 0:03:08]} 37. a6 {[%emt 0:00:30]} Re2 {[%emt 0:00:29]} 38. Qxe2 {[%emt 0:00:22]} Nxe2 {[%emt 0:01:24]} 39. a7 {[%emt 0:00:03]} Qa8 {[%emt 0:02:31]} 40. Ra6 {[%emt 0:00:48]} Ng3+ {[%emt 0:01:48]} 41. Kg1 {[%emt 0:00:24]} Ne2+ {[%emt 0:00:49]} 42. Kf2 {[%emt 0:00:04]} Nd4 {[%emt 0:00:53]} 43. Kg3 {[%emt 0:04:19]} Ne2+ {[%emt 0:00:34]} 44. Kf2 {[%emt 0:00:12]} Nd4 {[%emt 0:00:20]} 0-1